Cogmind - Beta 13 @@@ ROGUE MODE // 2024.04.22 @ 14:14:35 Player: CrimsonOccultist Result: Self-destructed Performance ------------- Evolutions (2) 1000 Regions Visited (4) 800 Robots Destroyed (32) 160 Value Destroyed (827) 827 Prototype IDs (0) 0 Alien Tech Used (0) 0 Bonus (25) 25 TOTAL SCORE: 2812 Bonus ------- Follower Combat Kills 25 Cogmind --------- Core Integrity 495/550 Matter 300/300 Energy 275/275 System Corruption 0% Temperature Cool (29) Movement Core (350) Ox6 Location -8/Materials Parts ------- > --- POWER (1) -------- Deuterium Engine > --- PROPULSION (2) --- (None) > --- UTILITY (6) ------ Small Storage Unit Trap Scanner Improved Terrain Scanner Core Shielding Long-range Tractor Beam > --- WEAPON (2) ------- (None) > --- INVENTORY (8) ---- Deuterium Engine Light Treads Power Shielding Hacking Suite Small Laser Small Laser Light Assault Rifle Grenade Launcher Peak State ------------ > --- POWER ------------ Deuterium Engine > --- PROPULSION ------- Aluminum Leg > --- UTILITY ---------- Small Storage Unit Trap Scanner Improved Terrain Scanner Core Shielding Long-range Tractor Beam > --- WEAPON ----------- Light Assault Rifle Light Assault Rifle > --- INVENTORY -------- Deuterium Engine Light Treads Power Shielding Hacking Suite Small Laser Small Laser Grenade Launcher Rocket Launcher [Rating: 18] Favorites ----------- Power Ion Engine Engine Ion Engine Propulsion Aluminum Leg Leg Aluminum Leg Utility Small Storage Unit Device Trap Scanner Storage Small Storage Unit Protection Core Shielding Weapon Light Assault Rifle Energy Gun Small Laser Ballistic Gun Light Assault Rifle Launcher Rocket Launcher Build | -11 -10 -10 -10 -8 ------- Run | Yrd Mat Min Sub Mat Slots Evolved 4 | . . . . 4 Power . | . . . . . Propulsion . | . . . . . Utility 4 | . . . . 4 Weapon . | . . . . . Parts Attached 27 | 6 13 2 1 5 Power 6 | 1 3 . 1 1 Engine 6 | 1 3 . 1 1 Core . | . . . . . Reactor . | . . . . . Propulsion 9 | 2 6 1 . . Treads . | . . . . . Leg 9 | 2 6 1 . . Wheel . | . . . . . Hover . | . . . . . Flight . | . . . . . Utility 5 | 1 1 . . 3 Device 3 | . . . . 3 Storage 1 | 1 . . . . Processor . | . . . . . Hackware . | . . . . . Protection 1 | . 1 . . . Artifact . | . . . . . Weapon 7 | 2 3 1 . 1 Energy Gun 1 | 1 . . . . Energy Cannon . | . . . . . Ballistic Gun 5 | 1 3 1 . . Ballistic Cannon . | . . . . . Launcher 1 | . . . . 1 Special Weapon . | . . . . . Impact Weapon . | . . . . . Slashing Weapon . | . . . . . Piercing Weapon . | . . . . . Special Melee Weapon . | . . . . . Unidentified Prototypes . | . . . . . Parts Lost 8 | . 4 . 1 3 Power . | . . . . . Propulsion 4 | . 2 . 1 1 Utility . | . . . . . Weapon 4 | . 2 . . 2 Highest Loss Streak 3 | . 1 . 1 3 To Critical Strikes . | . . . . . Average Slot Usage (%) 95 | . 92 100 98 74 Engine 13 | . 14 14 14 9 Leg 25 | . 27 28 27 8 Device 1 | . . . . 21 Storage 13 | . 14 14 14 9 Protection 11 | . 7 14 14 9 Ballistic Gun 26 | . 27 28 28 17 Naked Turns . | . . . . . Heaviest Build 21 | 12 13 13 13 21 Greatest Support 20 | 20 20 20 20 10 Greatest Overweight (x) 2 | . 1 . 1 2 Average Overweight (x) . | . . . . 1 Largest Inventory Capacity 8 | 8 8 8 8 8 Average Capacity 7 | 6 8 8 8 8 Most Carried 8 | 2 8 8 8 8 Average Carried 7 | . 5 7 8 7 Final Capacity 8 | 8 8 8 8 8 Final Carried 8 | 2 8 8 8 8 Class Distribution -------------------- 69% | Scavenger-Mutant 30% | Mutant Dominant Class ---------------- Mutant | -10/Materials Scavenger-Mutant | -10/Mines Scavenger-Mutant | -10/Subcaves Mutant | -8/Materials Resources | -11 -10 -10 -10 -8 ----------- Run | Yrd Mat Min Sub Mat Matter Collected 944 | 260 347 192 46 99 Remotely 99 | . . . . 99 Salvage Created 1072 | . 639 319 54 60 Parts 61 | . 46 9 2 4 Haulers Intercepted 2 | . 1 . . 1 Recyclers Shooed 1 | . 1 . . . Parts Field Recycled . | . . . . . Retrieved Matter . | . . . . . Parts Self-Destructed . | . . . . . Prevented . | . . . . . Kills | -11 -10 -10 -10 -8 ------- Run | Yrd Mat Min Sub Mat Combat Hostiles Destroyed 26 | . 15 8 1 2 Guns 24 | . 15 8 1 . AOE 2 | . . . . 2 Classes Destroyed 6 | . 5 . 1 . Hauler 2 | . 1 . . 1 Operator 1 | . 1 . . . Watcher 3 | . 3 . . . Swarmer 6 | . 4 . . 2 Grunt 19 | . 11 8 . . Subdweller 1 | . . . 1 . Best Kill Streak 5 | . 5 5 1 2 Combat Bots Only 5 | . 4 5 1 2 Max Kills in Single Turn 2 | . 1 1 1 2 Gunslinging . | . . . . . Exploded 2 | . . . . 2 Melee . | . . . . . Uniques/NPCs Destroyed . | . . . . . Combat | -11 -10 -10 -10 -8 -------- Run | Yrd Mat Min Sub Mat Hostile Shots Fired 167 | . 98 28 7 34 Missed 44 | . 20 7 3 14 Damage Taken 1454 | . 818 233 112 291 Core 236 | . 129 36 16 55 Absorbed by Shields . | . . . . . Redirected to Shielding 35 | . 12 8 4 11 Core Remaining (%) 63 | 100 . . 27 . Volleys Fired 182 | . 81 81 8 12 Largest 2 | . 2 2 2 2 Hottest 53 | . 40 40 40 53 Shots Fired 360 | . 156 164 16 24 Gun 356 | . 156 164 16 20 Cannon . | . . . . . Launcher 4 | . . . . 4 Special . | . . . . . Kinetic 356 | . 156 164 16 20 Thermal . | . . . . . Explosive 4 | . . . . 4 Electromagnetic . | . . . . . Robot Hit Streak 16 | . 12 16 16 4 Robot Miss Streak 6 | . 6 2 . 5 Penetration Max . | . . . . . Secondary Targets 1 | . . 1 . . Max Gunslinging Chain 1 | . . 1 . . Shots Hit Robots 165 | . 102 34 16 13 Core Hits 72 | . 39 19 5 9 Critical Kills 1 | . 1 . . . Critical Parts Destroyed . | . . . . . Critical Strikes 1 | . 1 . . . Destroy 1 | . 1 . . . Melee Attacks . | . . . . . Impact . | . . . . . Slashing . | . . . . . Piercing . | . . . . . Sneak Attacks . | . . . . . Combat Hostiles . | . . . . . Follow-up Attacks . | . . . . . Damage Inflicted 1597 | . 1013 284 129 171 Guns 1500 | . 1009 279 129 83 Cannons . | . . . . . Explosions 88 | . . . . 88 Melee . | . . . . . Ramming 9 | . 4 5 . . Kinetic 1500 | . 1009 279 129 83 Thermal . | . . . . . Explosive 88 | . . . . 88 Electromagnetic . | . . . . . Impact . | . . . . . Slashing . | . . . . . Piercing . | . . . . . Highest Corruption 1 | . 1 1 1 . Average Corruption 1 | . 1 1 1 . Corruption Purged . | . . . . . Corruption Blocked . | . . . . . Effects 14 | . . 6 8 . Message Errors 4 | . . 2 2 . Matter Fused 2 | . . 1 1 . Heat Flow Errors 2 | . . . 2 . Data Loss (minor) 3 | . . . 3 . Data Loss (major) 1 | . . 1 . . Misfires 2 | . . 2 . . Overload Shots . | . . . . . Overflow Damage 4 | . . . . 4 Projectiles . | . . . . . Explosions 4 | . . . . 4 Melee . | . . . . . Knockbacks . | . . . . . Impact . | . . . . . Kinetic . | . . . . . Secondary . | . . . . . Self-Inflicted Damage 104 | . . . . 104 Shots 3 | . . . . 3 Rammed . | . . . . . Targets Rammed 4 | . 1 3 . . Kicked 4 | . 1 3 . . Crushed . | . . . . . Highest Temperature 207 | . 36 12 207 29 Average Temperature 18 | . 9 6 99 11 Received Heat Transfer 540 | . 342 126 18 54 Siege Activations . | . . . . . Robots Corrupted . | . . . . . Combat Hostiles . | . . . . . Parts Fried . | . . . . . Impact Corruptions . | . . . . . Robots Melted . | . . . . . Combat Hostiles . | . . . . . Parts Melted 1 | . . . 1 . Heat Transferred . | . . . . . Parts Sabotaged . | . . . . . Parts Stolen . | . . . . . Parts Stripped . | . . . . . Power Chain Reactions . | . . . . . Alert | -11 -10 -10 -10 -8 ------- Run | Yrd Mat Min Sub Mat Peak Influence 182 | . 182 106 . 65 Initial 51 | . . 51 . . Average 45 | . 78 32 . 5 Maximum Alert Level . | . . . . . Low Security (%) 100 | 100 100 100 . 100 Level 1 . | . . . . . Level 2 . | . . . . . Level 3 . | . . . . . Level 4 . | . . . . . Level 5 . | . . . . . High Security . | . . . . . Max Security . | . . . . . Squads Dispatched 5 | . 4 . . 1 Investigation 2 | . 2 . . . Extermination . | . . . . . Reinforcement 3 | . 2 . . 1 Assault . | . . . . . Garrison . | . . . . . Intercept . | . . . . . Searches Triggered . | . . . . . Construction Impeded . | . . . . . Haulers Reinforced . | . . . . . Active Scanning Responses . | . . . . . Cargo Convoy Interrupts . | . . . . . Stealth | -11 -10 -10 -10 -8 --------- Run | Yrd Mat Min Sub Mat Distress Signals 5 | . 3 1 . 1 Communications Jammed . | . . . . . Distress Signals . | . . . . . Times Spotted 53 | . 23 8 12 10 Peak Tracking Total 6 | . 5 2 4 6 Tactical Retreats . | . . . . . Traps | -11 -10 -10 -10 -8 ------- Run | Yrd Mat Min Sub Mat Traps Triggered 1 | . 1 . . . Indirectly . | . . . . . Trap Hack Attempts . | . . . . . Triggered . | . . . . . Disarmed . | . . . . . Reprogrammed . | . . . . . Reused . | . . . . . Traps Extracted . | . . . . . Installed . | . . . . . Triggered . | . . . . . Machines | -11 -10 -10 -10 -8 ---------- Run | Yrd Mat Min Sub Mat Machines Disabled . | . . . . . Max in Single Turn . | . . . . . Machines Repaired . | . . . . . Machines Dismantled . | . . . . . Machines Sabotaged . | . . . . . Overloaded Fab Kills . | . . . . . Hacking | -11 -10 -10 -10 -8 --------- Run | Yrd Mat Min Sub Mat Machines Accessed 6 | . 4 . 1 1 Terminals 4 | . 4 . . . Fabricators . | . . . . . Repair Stations . | . . . . . Recycling Units . | . . . . . Scanalyzers 1 | . . . . 1 Garrison Access . | . . . . . Total Hacks 16 | . 11 . 3 2 Successful 8 | . 3 . 3 2 Failed 8 | . 8 . . . Catastrophic 2 | . 2 . . . Database Lockouts . | . . . . . Manual 6 | . 6 . . . Terminals 11 | . 11 . . . Fabricators . | . . . . . Repair Stations . | . . . . . Recycling Units . | . . . . . Scanalyzers 2 | . . . . 2 Garrison Access . | . . . . . Terminal Hacks 5 | . 2 . 3 . Record 3 | . . . 3 . Unreport Threat 2 | . 2 . . . Fabricator Hacks . | . . . . . Repair Station Hacks . | . . . . . Recycling Unit Hacks . | . . . . . Scanalyzer 2 | . . . . 2 Insert Component 1 | . . . . 1 Analyze 1 | . . . . 1 Garrison Access Hacks . | . . . . . Unauthorized Hacks 1 | . 1 . . . Terminals 1 | . 1 . . . Operators 1 | . 1 . . . Fabricators . | . . . . . Repair Stations . | . . . . . Recycling Units . | . . . . . Scanalyzers . | . . . . . Garrison Access . | . . . . . Data Cores Recovered . | . . . . . Used . | . . . . . Hacking Detections 4 | . 4 . . . Full Trace Events 3 | . 3 . . . Feedback Events 1 | . 1 . . . Corruption 1 | . 1 . . . Feedback Blocked . | . . . . . Robot Schematics Acquired . | . . . . . Robots Built . | . . . . . Authchips . | . . . . . Time . | . . . . . Total Robot Build Rating . | . . . . . Part Schematics Acquired 1 | . . . . 1 Parts Built . | . . . . . Authchips . | . . . . . Time . | . . . . . Total Part Build Rating . | . . . . . Parts Repaired . | . . . . . Time . | . . . . . Parts Recycled . | . . . . . Recycled Matter . | . . . . . Retrieved Matter . | . . . . . Retrieved Components . | . . . . . Parts Scanalyzed 1 | . . . . 1 Part Schematics Acquired 1 | . . . . 1 Parts Damaged . | . . . . . Bothacking | -11 -10 -10 -10 -8 ------------ Run | Yrd Mat Min Sub Mat Used RIF Installer . | . . . . . Robots Hacked . | . . . . . Non-combat . | . . . . . Combat . | . . . . . Robot Hacks Applied . | . . . . . Relay Couplers Released . | . . . . . Fabnet Peak Effective % . | . . . . . Robots Rewired . | . . . . . Allies Hacked . | . . . . . Hacks Repelled . | . . . . . Allies | -11 -10 -10 -10 -8 -------- Run | Yrd Mat Min Sub Mat Total Allies 3 | . . 3 . . Largest Group 3 | . . 3 . . Highest-Rated Group 40 | . . 40 . . Highest-Rated Ally 16 | . . 16 . . Total Orders . | . . . . . Ally Attacks 5 | . . 5 . . Total Damage 42 | . . 42 . . Kills 1 | . . 1 . . Allies Corrupted . | . . . . . Allies Melted . | . . . . . Intel | -11 -10 -10 -10 -8 ------- Run | Yrd Mat Min Sub Mat Robot Analysis Total . | . . . . . Derelict Logs Recovered 2 | . . . 2 . Drone Launches . | . . . . . Drone Recoveries . | . . . . . Exploration | -11 -10 -10 -10 -8 ------------- Run | Yrd Mat Min Sub Mat Turns Passed 2836 | 85 744 886 869 252 Spaces Moved 1420 | 64 381 268 629 78 Core 4 | 4 . . . . Treads . | . . . . . Legs 1416 | 60 381 268 629 78 Wheels . | . . . . . Hover . | . . . . . Flight . | . . . . . Fastest Speed 50 | 50 120 120 120 190 Average Speed 127 | 115 121 120 123 226 Slowest Speed 260 | 120 190 120 190 260 Overloaded Moves . | . . . . . Propulsion Burnouts . | . . . . . Robots Hopped . | . . . . . Cave-ins Triggered . | . . . . . Exploration Rate (%) 39 | 4 61 66 52 12 Regions Visited 4 Branch Regions 2 Pre-discovered Areas 2 | . . . 2 . Known Exits Taken . | . . . . . Unknown Exits Taken 4 | 1 1 1 1 . Scrap Searched 2 | . . 1 1 . Spaces Dug . | . . . . . Terrain Destroyed 20 | . . . . 20 Melee . | . . . . . Projectile . | . . . . . AOE 20 | . . . . 20 Terrain Rammed . | . . . . . Walls Destroyed . | . . . . . Machines Disabled . | . . . . . Actions | -11 -10 -10 -10 -8 --------- Run | Yrd Mat Min Sub Mat Total 2144 | 72 527 704 709 132 Wait 487 | . 35 346 72 34 Move 1416 | 63 380 267 628 78 Hop . | . . . . . Pick Up 14 | 3 8 2 . 1 Fast Attach 12 | 5 4 . . 3 Attach 3 | 1 2 . . . Detach 1 | . 1 . . . Swap 12 | . 7 2 1 2 Drop 13 | . 8 3 . 2 Fire 182 | . 81 81 8 12 Melee . | . . . . . Ram . | . . . . . Kick 4 | . 1 3 . . Crush . | . . . . . Escape Stasis . | . . . . . Rewire . | . . . . . Trap . | . . . . . Miscellaneous . | . . . . . Route ------- -11/Scrapyard -10/Materials (discovered 3 exits: [*Mat] / [*Min x2]) -10/Mines -10/Subcaves -8/Materials History --------- Turn | Location | Event 18 | -11/Scrapyard | Discovered new exit (range 16) 86 | -11/Scrapyard | Entered Materials 317 | -10/Materials | Build established: Mutant 392 | -10/Materials | Discovered new exit (range 11) 466 | -10/Materials | Discovered new exit (range 15) 688 | -10/Materials | Discovered new exit (range 16) 737 | -10/Materials | Core integrity fell below 50% 830 | -10/Materials | Entered Mines 837 | -10/Mines | Received a Rocket Launcher from a helpful Derelict 875 | -10/Mines | Build established: Scavenger-Mutant 1084 | -10/Mines | Assisted by bots powering up and referring to "LRC-V3" 1092 | -10/Mines | Excavation squad dispatched 1092 | -10/Mines | A large section of the Mines collapsed 1342 | -10/Mines | Excavation squad dispatched 1592 | -10/Mines | Excavation squad dispatched 1670 | -10/Mines | Discovered new exit (range 7) 1716 | -10/Mines | Entered Subcaves 1836 | -10/Subcaves | Ambushed by swarm of Subdwellers 1884 | -10/Subcaves | Learned Materials terminal intel 1899 | -10/Subcaves | Learned location of Zion (-7) 1899 | -10/Subcaves | Met a Zionite searching for "candidates" 1910 | -10/Subcaves | Learned location of Mines (-8) 2310 | -10/Subcaves | Visited Clippyterm 2359 | -10/Subcaves | A swath of the cavern ceiling suddenly collapsed 2522 | -10/Subcaves | Discovered new exit (range 15) 2585 | -10/Subcaves | Entered Materials 2585 | -8/Materials | Evolved 4 slots: Utility x4 2586 | -8/Materials | Loaded intel: 12 terminal locations 2816 | -8/Materials | Build established: Mutant 2837 | -8/Materials | Self-destructed Last Messages --------------- 02824_ Acquired 7 matter. 02825_ K-01 Serf collects debris. 02826_ Acquired 10 matter. 02826_ S-10 Pest destroyed. 02827_ Acquired 8 matter. 02827_ Acquired 4 matter. 02830_ Acquired 12 matter. 02830_ U-05 Engineer lays Concrete. 02831_ U-05 Engineer builds a Wall. 02832_ U-05 Engineer lays Concrete. 02833_ Acquired 12 matter. 02833_ U-05 Engineer lays Concrete. 02835_ Rocket Launcher destroyed. 02835_ Destroyed Rocket Launcher. 02835_ U-05 Engineer builds a Wall. 02835_ Lgt. Assault Rifle destroyed. 02835_ Critical hit (Burn: +37). 02836_ Acquired 2 matter. 02836_ The unstable cave ceiling collapses. 02836_ U-05 Engineer lays Concrete. Map ----- +----------------------------------------------------+ | | | | | | | | | | | | | ##########???????????????????????????????????????? | | #???????????????????????????????????????? | | """ """ #? ???????????"?????????????????????????? | | """ """ #????????#??????????????????????????????? | | """ """ #???????? ????????????? ????????????????? | | #???????# #???"?? ??????????????????????? | | #????#?## #?????? ??????????????????????? | | # ??#??# #???? ????????????????????????? | | #???????# #?????? ?? ??????????????????? | | ####+############# ########????+###??????????????? | | #######????????? | | #####+#######????? ?????????? | | #?# ##?#????? ???????????? | | ####+#########?# "" #??#?### ????????????? | | #?#?# """ #??## # o #+##??????????? | | "" #???# S" #??# ??????????? | | "" #???# #### # " "??????????? | | "" #???# ; Y* "T"??????????? | | ** #???# # * """??????????? | | #???####+## @ #??? ??????????? | | ############???#### #??????????????? | | ??#?????#??????# u u #??????????????? | | ???????????????# ###s#s[ #u #??????????????? | | ???##??????????# ? %% # #??????????????? | | ???????????????# # ? [= # #??????????????? | | ??? ???????????* # ? [ # #??????????????? | | ????? ???? ??? #?? # #??????????????? | | ? ????????? ? ?? + ?????????????? | | ?????????? ?"""" ?? # # #????????????? | | ??????????? """" ? #? ###????????????? | | ??????????????"" ?? #? #??????????????? | | ??????????????? ?# #? ? ??????????????? | | ??????? ?????? ?##########? ??????????????????? | | ??????????????? ??????????????????????????????T | | ??????????????? ?????????????????????????????????? | | ?????????????????????????????????????????????????? | | ?????????????????????"???????????????????????????? | | ?????????????????????T???????????????????????????? | | ?????????????????????"???????????????????????????? | | ?????????????????????????????????????????????????? | | ?????????????????????????????????????????????????? | | ?????????????????????????????????????????????????? | | ?????????????????????????????????????????????????? | | ?????????????????????????????????????????????????? | +----------------------------------------------------+ Best States ------------- Heat Dissipation 31 Energy Generation 14 Energy Capacity 275 Matter Stores 300 Matter Capacity 300 Sight Range 16 Terrain Scan Range 16 Terrain Scan Density 10 Core Shielding 20 Evasion (%) 55 Item Schematics ----------------- Hacking Suite | -8/Materials | Scanalyzed Robot Schematics ------------------ None Fabricated ------------ Nothing Alien Tech Used ----------------- None Achievements -------------- None Challenges ------------ None Game ------ Seed ShockCryofiberPrototype Manual? 0 Play Time 00:18:50 Cumulative 15.8 hours Start 2024.04.15 @ 14:20:30 End 2024.04.22 @ 14:14:35 Sessions 3 Manual Loads 0 Difficulty Rogue Special Mode None Game No. 16 Rogue 16 Adventurer 0 Explorer 0 Win Type - Total 0 Types 0/0/0/0/0/0/0/0/0 Lore% 9 Gallery% 22 Achievement% 20 Wizard Run 0 Options --------- Layout 0 ASCII 0 Keyboard 1 Movement Numpad Keybinds 0 Fullscreen 1 Font 18/SmallcapsGlow Map View 76x50 Zoom Use 0% Tactical HUD 1 Map Filters NONE Filters NONE Steam 1 RUN: 6e0cc0b2-b264-4397-90bd-ec9431f482c4